bitfinex/quotes_SOLUSD_20211001
["timestamp","ask_amount","ask_price","bid_price","bid_amount"]
[1633076170617,700.0,143.0,142.96,344.17301619]
[1633076171017,67.291227,142.99,142.96,344.17301619]
[1633076171218,67.291227,142.99,142.88,0.02088]
[1633076171424,700.0,143.0,142.86,0.02088]
[1633076171817,700.0,143.0,142.85,79.14312961]
[1633076172017,700.0,143.0,142.86,29.81522692]
[1633076172420,700.0,143.0,142.87,5.63542961]
[1633076172621,7.89715,142.99,142.86,29.81522692]
[1633076173019,7.89715,142.99,142.96,18.28]
[1633076173420,67.355906,142.98,142.96,18.28]
[1633076174023,7.89715,142.97,142.94,30.0]
[1633076175019,7.89715,142.97,142.89,492.72344665]
[1633076175820,7.89715,142.97,142.9,24.60534088]
[1633076176822,7.89715,142.97,142.89,492.72344665]
[1633076178023,7.89715,142.97,142.88,58.47398017]
[1633076178224,7.89715,142.97,142.88,30.0]
[1633076179429,86.188105,142.96,142.88,30.0]
[1633076179629,7.91803,142.95,142.88,30.0]
[1633076179827,96.0,142.94,142.77,73.2338]
[1633076180027,0.02088,142.93,142.74,4.04786573]
[1633076180229,7.91803,142.93,142.74,4.04786573]
[1633076180427,0.02088,142.92,142.75,22.79231142]
[1633076180632,7.91803,142.92,142.75,22.79231142]
[1633076181628,7.91803,142.92,142.8,474.77876026]
[1633076182227,7.91803,142.92,142.79,28.24933924]
[1633076183228,17.5131,142.9,142.73,78.0511]
[1633076183431,7.89715,142.89,142.73,78.0511]
[1633076183630,7.91803,142.89,142.73,77.5511]
[1633076183828,7.91803,142.89,142.72,722.39516981]
[1633076184229,7.91803,142.89,142.73,26.1236372]
[1633076184431,7.91803,142.89,142.75,510.23891466]
[1633076184631,7.91803,142.89,142.76,28.28349882]
[1633076186230,2.59909905,142.88,142.75,510.23891466]
[1633076186429,7.89715,142.87,142.75,510.23891466]
[1633076187236,7.89715,142.87,142.76,25.16456282]
[1633076189030,7.89715,142.87,142.77,73.3311]
[1633076190034,7.89715,142.87,142.76,25.16456282]
[1633076190231,7.89715,142.87,142.77,74.3287]
[1633076191031,7.89715,142.87,142.76,25.16456282]
[1633076193035,25.41345,142.87,142.76,25.16456282]
[1633076194635,29.06133168,142.87,142.76,25.16456282]
[1633076195035,25.41345,142.87,142.76,25.16456282]
[1633076199239,31.04887961,142.87,142.76,25.16456282]
[1633076199437,25.41345,142.87,142.76,25.16456282]
[1633076199640,25.41345,142.87,142.73,73.0029]
[1633076199837,31.04887961,142.87,142.72,782.39516981]
[1633076200039,25.41345,142.87,142.72,782.39516981]
[1633076200438,25.41345,142.87,142.73,74.1676]
[1633076200637,0.02088,142.86,142.74,28.54287641]
[1633076202038,0.02088,142.86,142.75,75.0252]
[1633076202443,5.65630961,142.86,142.75,75.0252]
[1633076202642,0.02088,142.86,142.75,75.0252]
[1633076203840,5.65630961,142.86,142.75,75.0252]
[1633076204040,0.02088,142.86,142.75,75.0252]
[1633076204242,7.89715,142.87,142.75,77.04863637]
[1633076205644,7.89715,142.87,142.75,75.0252]
[1633076206043,7.89715,142.87,142.75,77.04908627]
[1633076206241,7.89715,142.87,142.75,75.0252]
[1633076206643,0.02088,142.86,142.75,75.0252]
[1633076206841,0.02088,142.86,142.74,58.54287641]
[1633076207046,0.02088,142.86,142.74,28.54287641]
[1633076207243,5.65630961,142.86,142.74,28.54287641]
[1633076207445,0.02088,142.85,142.74,28.54287641]
[1633076207645,7.91803,142.85,142.74,28.54287641]
[1633076207851,7.91803,142.85,142.75,2.02542797]
[1633076208043,7.89715,142.85,142.77,2.02525481]
[1633076208243,7.89715,142.85,142.78,22.52340223]
[1633076208645,7.89715,142.85,142.78,24.54844408]
[1633076209043,7.89715,142.85,142.79,2.02491448]
[1633076209244,7.89715,142.85,142.81,27.16043803]
[1633076209646,7.89715,142.85,142.81,29.18568577]
[1633076209844,7.89715,142.85,142.81,27.16043803]
[1633076212447,7.89715,142.85,142.8,2.0251884]
[1633076212648,7.89715,142.85,142.78,546.8284865]
[1633076212847,7.89715,142.85,142.78,544.80300681]
[1633076213051,7.89715,142.85,142.78,546.82855385]
[1633076213247,7.89715,142.85,142.78,516.82855385]
[1633076213447,7.89715,142.85,142.78,540.98061565]
[1633076213846,7.89715,142.85,142.78,54.1520618]
[1633076214451,7.89715,142.85,142.78,24.1520618]
[1633076214649,7.89715,142.85,142.78,26.17760382]
[1633076214848,7.89715,142.85,142.78,24.1520618]
[1633076215047,7.89715,142.85,142.77,2.02557021]
[1633076215250,7.89715,142.85,142.76,2.02573705]
[1633076215848,7.89715,142.85,142.75,2.02590041]
[1633076216048,7.89715,142.85,142.76,21.91934608]
[1633076216649,7.89715,142.85,142.76,23.94508897]
[1633076216851,7.89715,142.85,142.79,23.40683754]
[1633076217050,7.89715,142.85,142.79,25.43222418]
[1633076217251,7.89715,142.85,142.79,23.40683754]
[1633076218055,7.89715,142.85,142.77,80.99826226]
[1633076218254,7.89715,142.85,142.77,78.9727]
[1633076218651,7.89715,142.85,142.74,30.0]
[1633076219051,7.89715,142.85,142.75,25.68841184]
[1633076220253,7.89715,142.85,142.75,27.71424253]
[1633076220455,7.89715,142.85,142.75,25.68841184]
[1633076221858,33.06408142,142.85,142.75,25.68841184]
[1633076222058,50.58288142,142.85,142.73,2.02604973]
[1633076222657,50.58288142,142.85,142.72,2.02619625]
[1633076223057,50.58288142,142.85,142.68,521.1394944]
[1633076223058,75.67630961,142.84,142.71,2.02627912]
[1633076223258,17.5253,142.79,142.71,1.27627912]
[1633076223460,7.89715,142.78,142.68,576.78956377]
[1633076224257,7.89715,142.78,142.68,515.28956377]
[1633076224857,7.89715,142.78,142.68,489.6394944]
[1633076225058,7.89715,142.78,142.66,80.19964249]
[1633076225259,7.89715,142.78,142.66,76.1472]
[1633076225457,7.89715,142.78,142.67,8.1116187]
[1633076225657,7.89715,142.78,142.66,76.1472]
[1633076225857,7.89715,142.78,142.67,22.6172644]
[1633076226457,7.89715,142.78,142.66,76.1472]
[1633076227058,7.89715,142.78,142.6,6.07870294]
[1633076227059,7.89715,142.78,142.62,4.05168027]
[1633076227257,7.91803,142.78,142.62,4.05168027]
[1633076227456,7.91803,142.78,142.62,32.28339358]
[1633076228059,25.41901132,142.78,142.62,28.23171331]
[1633076228261,25.41901132,142.78,142.63,78.7574]
[1633076229260,2.57461852,142.75,142.63,78.7574]
[1633076229462,25.42965,142.74,142.63,78.7574]
[1633076229660,25.42965,142.74,142.58,4.0514969]
[1633076229862,25.42965,142.74,142.6,478.06936075]
[1633076230460,25.42965,142.74,142.61,37.72725532]
[1633076230661,25.42965,142.74,142.61,29.11347778]
[1633076231264,25.42965,142.74,142.62,79.0203]
[1633076232061,7.89715,142.74,142.62,79.0203]
[1633076234270,7.89715,142.74,142.62,84.65572961]
[1633076234469,7.89715,142.74,142.62,79.0203]
[1633076235268,7.89715,142.74,142.62,84.65572961]
[1633076235469,7.89715,142.74,142.62,79.0203]
[1633076236268,7.89715,142.74,142.64,26.75752917]
[1633076236667,7.89715,142.74,142.65,5.63542961]
[1633076237069,7.89715,142.74,142.64,26.75752917]
[1633076237672,7.89715,142.74,142.64,32.39295878]
[1633076238070,7.89715,142.74,142.64,32.41383878]
[1633076238474,0.02088,142.85,142.66,30.0]
[1633076238870,0.02088,142.85,142.67,5.63542961]
[1633076239470,25.18781142,142.85,142.69,24.68202961]
[1633076240069,17.5197,142.84,142.69,24.68202961]
[1633076240270,149.42872961,142.84,142.69,24.68202961]
[1633076240471,100.84324103,142.83,142.69,24.68202961]
[1633076240670,0.02088,142.82,142.69,24.68202961]
[1633076240871,5.65630961,142.82,142.69,24.68202961]
[1633076241071,0.02088,142.81,142.69,24.68202961]
[1633076241678,5.63542961,142.8,142.69,24.68202961]
[1633076241871,0.02088,142.81,142.69,24.68202961]
[1633076242074,15.72897037,142.83,142.69,24.68202961]
[1633076243071,21.36439998,142.83,142.69,24.68202961]
[1633076243272,15.72897037,142.83,142.69,24.68202961]
[1633076243674,21.36439998,142.83,142.69,24.68202961]
[1633076244475,15.72897037,142.83,142.69,24.68202961]
[1633076245474,21.36439998,142.83,142.69,24.68202961]
[1633076247280,46.5313314,142.83,142.69,24.68202961]
[1633076247479,40.89590179,142.83,142.69,24.68202961]
[1633076247878,15.72897037,142.83,142.69,24.68202961]
[1633076248682,21.36439998,142.83,142.69,24.68202961]
[1633076248883,0.02088,142.82,142.69,24.68202961]
[1633076249484,76.05468,142.82,142.69,24.68202961]
[1633076249681,0.02088,142.81,142.69,24.68202961]
[1633076250484,17.5205,142.84,142.7,8.110326]
[1633076250681,17.5205,142.84,142.69,24.68202961]
[1633076250881,30.80236103,142.83,142.65,4.05296418]
[1633076251081,25.16693142,142.83,142.67,4.05261295]
[1633076251281,17.5205,142.84,142.68,4.05225203]
[1633076251481,17.5205,142.84,142.67,12.1634338]
[1633076251885,23.15592961,142.84,142.68,21.99451746]
[1633076252683,17.5205,142.84,142.68,21.99451746]
[1633076253084,23.15592961,142.84,142.68,21.99451746]
[1633076253284,23.15592961,142.84,142.69,74.6355]
[1633076253885,49.47841658,142.84,142.69,74.6355]
[1633076254692,75.8461,142.83,142.69,74.6355]
[1633076255088,31.95791658,142.83,142.69,74.6355]
[1633076255287,26.32248697,142.83,142.69,74.6355]
[1633076255487,76.9697,142.85,142.71,24.3681418]
[1633076256488,14.85508148,142.87,142.71,24.3681418]
[1633076256688,75.0773,142.86,142.71,24.3681418]
[1633076256888,75.0773,142.86,142.72,8.10943551]
[1633076257087,75.0773,142.86,142.71,24.3681418]
[1633076257487,14.85508148,142.87,142.71,24.3681418]
[1633076257889,17.5181,142.85,142.71,24.3681418]
[1633076258389,17.5181,142.85,142.72,468.1487535]
[1633076258990,26.32248697,142.85,142.72,468.1487535]
[1633076259191,14.85508148,142.87,142.72,473.78418311]
[1633076259592,14.85508148,142.87,142.72,468.1487535]
[1633076259991,27.99464712,142.86,142.72,468.1487535]
[1633076260992,59.9525637,142.86,142.72,468.1487535]
[1633076261190,54.31713409,142.86,142.72,468.1487535]
[1633076261392,27.99464712,142.85,142.72,468.1487535]
[1633076262397,59.9525637,142.85,142.72,468.1487535]
[1633076262790,27.99464712,142.84,142.72,468.1487535]
[1633076266394,14.85508148,142.87,142.72,468.1487535]
[1633076267194,77.8479,142.86,142.72,468.1487535]
[1633076267599,0.02088,142.86,142.72,468.1487535]
[1633076267801,76.55048,142.86,142.72,468.1487535]
[1633076268002,59.9734437,142.86,142.72,468.1487535]
[1633076268202,75.47852518,142.86,142.71,24.3681418]
[1633076273233,17.5195,142.84,142.71,24.3681418]
[1633076273633,51.14957673,142.84,142.71,24.3681418]
[1633076276837,93.19381184,142.84,142.67,4.05338003]
[1633076277840,93.19381184,142.84,142.68,22.28876662]
[1633076280242,144.65581184,142.84,142.66,4.05385108]
[1633076280442,93.19381184,142.84,142.66,4.05385108]
[1633076280646,93.19381184,142.84,142.65,12.1674597]
[1633076280647,0.02088,142.83,142.65,12.1674597]
[1633076280842,0.02088,142.83,142.65,4.0542855]
[1633076281041,80.59693518,142.82,142.65,12.16765489]
[1633076281242,80.59693518,142.82,142.66,24.22927007]
[1633076281442,80.59693518,142.81,142.66,24.22927007]
[1633076281841,80.59693518,142.8,142.66,24.22927007]
[1633076282042,98.12183518,142.8,142.66,24.22927007]
[1633076282242,24.95745553,142.79,142.66,24.22927007]
[1633076282643,54.17988043,142.79,142.66,24.22927007]
[1633076282842,5.63542961,142.78,142.66,24.22927007]
[1633076283246,79.45782961,142.78,142.66,24.22927007]
[1633076283643,5.63542961,142.78,142.66,24.22927007]
[1633076283844,48.54445082,142.79,142.66,24.22927007]
[1633076284045,54.17988043,142.79,142.66,24.22927007]
[1633076285447,5.63542961,142.81,142.66,24.22927007]
[1633076285645,5.63542961,142.81,142.67,12.1646595]
[1633076285853,0.02088,142.83,142.69,22.91521545]
[1633076286047,18.31091481,142.84,142.69,22.91521545]
[1633076286647,18.31091481,142.84,142.7,83.86738641]
[1633076286846,96.42031481,142.84,142.7,75.7571]
[1633076287446,131.60316932,142.84,142.71,8.10962753]
[1633076287647,131.60316932,142.84,142.72,29.29750918]
[1633076288549,53.49376932,142.84,142.72,29.29750918]
[1633076288747,29.5474249,142.84,142.72,29.29750918]
[1633076288950,29.5474249,142.84,142.73,8.10859811]
[1633076289349,29.5474249,142.84,142.72,29.29750918]
[1633076289548,52.84376932,142.89,142.72,33.34903443]
[1633076289750,52.84376932,142.89,142.73,12.15861296]
[1633076289948,52.84376932,142.89,142.74,0.02088]
[1633076290950,52.84376932,142.89,142.74,4.07083341]
[1633076291148,52.84376932,142.89,142.75,30.30876482]
[1633076291349,47.20833971,142.89,142.75,30.30876482]
[1633076291949,47.20833971,142.89,142.76,506.64241837]
[1633076292753,47.20833971,142.89,142.78,27.72722716]
[1633076299758,52.84376932,142.89,142.78,27.72722716]
[1633076299960,80.85549074,142.89,142.78,27.72722716]
[1633076302762,17.5143,142.88,142.78,27.72722716]
[1633076303168,33.64715103,142.87,142.78,27.72722716]
[1633076303362,33.64715103,142.87,142.7,72.6301]
[1633076303563,73.0123,142.86,142.7,72.6301]
[1633076303762,106.65945103,142.86,142.7,72.6301]
[1633076304163,123.70995277,142.86,142.7,72.6301]
[1633076304363,123.70995277,142.86,142.71,29.07855368]
[1633076304564,153.25737767,142.86,142.71,29.07855368]
[1633076304766,153.25737767,142.86,142.71,365.99104118]
[1633076305569,5.63542961,142.85,142.71,365.99104118]
[1633076306567,63.19457593,142.85,142.71,365.99104118]
[1633076307771,5.63542961,142.84,142.71,365.99104118]
[1633076308166,57.55914632,142.83,142.71,365.99104118]
[1633076308568,80.24507767,142.83,142.71,365.99104118]
[1633076310475,80.24507767,142.83,142.71,29.07855368]
[1633076314269,29.5474249,142.82,142.71,29.07855368]
[1633076314668,35.18285451,142.82,142.71,29.07855368]
[1633076318470,29.5474249,142.81,142.71,29.07855368]
[1633076318868,35.18285451,142.81,142.71,29.07855368]
[1633076319069,35.18285451,142.81,142.68,0.02088]
[1633076319270,17.525,142.79,142.66,429.83890011]
[1633076319473,29.5474249,142.8,142.67,79.0505]
[1633076319674,5.63542961,142.78,142.67,79.0505]
[1633076320072,5.63542961,142.8,142.68,26.47306785]
[1633076320271,5.63542961,142.83,142.68,26.47306785]
[1633076320672,34.42787325,142.86,142.68,32.12937746]
[1633076320872,34.42787325,142.86,142.68,26.49394785]
[1633076321072,58.55653521,142.83,142.68,26.49394785]
[1633076321272,58.55653521,142.83,142.68,26.47306785]
[1633076321472,5.63542961,142.82,142.68,26.47306785]
[1633076321872,58.55653521,142.81,142.68,26.47306785]
[1633076322175,35.18285451,142.8,142.69,73.7826]
[1633076322372,35.18285451,142.8,142.68,26.47306785]
[1633076322573,5.63542961,142.79,142.68,26.47306785]
[1633076323171,5.63542961,142.79,142.66,429.83890011]
[1633076324272,35.18285451,142.79,142.67,28.34090489]
[1633076324676,5.63542961,142.78,142.67,28.34090489]
[1633076324873,5.63542961,142.78,142.66,429.83890011]
[1633076325073,114.3914459,142.77,142.66,429.83890011]
[1633076325274,114.3914459,142.77,142.62,74.44258]
[1633076325479,5.63542961,142.76,142.62,73.44258]
[1633076325875,5.63542961,142.76,142.63,22.53631135]
[1633076326478,47.0747249,142.77,142.63,22.53631135]
[1633076326676,52.71015451,142.77,142.63,22.53631135]
[1633076327279,29.5474249,142.76,142.63,22.53631135]
[1633076327676,5.63542961,142.75,142.63,22.53631135]
[1633076328275,35.18285451,142.75,142.63,22.53631135]
[1633076328675,5.63542961,142.74,142.63,22.53631135]
[1633076329075,35.18285451,142.74,142.63,22.53631135]
[1633076329277,5.63542961,142.76,142.63,28.17174096]
[1633076329578,0.02088,142.8,142.64,28.93094727]
[1633076329777,0.02088,142.81,142.64,28.93094727]
[1633076329980,0.02088,142.82,142.65,13.74742986]
[1633076330179,0.02088,142.82,142.66,29.62499869]
[1633076330377,77.4327,142.82,142.66,35.2813083]
[1633076330577,77.4327,142.82,142.67,8.11102381]
[1633076330776,77.4327,142.82,142.67,13.74645342]
[1633076331078,77.4327,142.82,142.67,5.63542961]
[1633076331279,77.4327,142.82,142.66,29.64587869]
[1633076331478,77.4327,142.82,142.67,8.1112916]
[1633076331877,5.63542961,142.81,142.67,8.1112916]
[1633076332078,5.63542961,142.81,142.66,33.69743682]
[1633076332079,5.63542961,142.81,142.69,22.81652437]
[1633076332678,62.2058537,142.81,142.69,22.81652437]
[1633076333080,5.63542961,142.8,142.69,22.81652437]
[1633076335785,5.63542961,142.8,142.63,0.02088]
[1633076335986,30.20077697,142.79,142.63,8.13446547]
[1633076336185,2.47679958,142.77,142.62,60.0]
[1633076336584,82.52877048,142.76,142.62,60.0]
[1633076336785,82.52877048,142.76,142.63,28.01304785]
[1633076336986,55.44340113,142.75,142.63,28.01304785]
[1633076337386,37.22070658,142.74,142.63,28.01304785]
[1633076337987,5.63542961,142.73,142.62,60.0]
[1633076338188,37.22070658,142.73,142.62,30.0]
[1633076338388,37.22070658,142.73,142.6,72.9106]
[1633076338987,37.22070658,142.73,142.61,26.16007199]
[1633076340790,5.63542961,142.75,142.62,8.11357624]
[1633076340992,0.02088,142.77,142.62,8.11357624]
[1633076341189,5.63542961,142.76,142.61,26.16007199]
[1633076342193,85.14682961,142.76,142.61,26.16007199]
[1633076342390,5.63542961,142.76,142.61,26.16007199]
[1633076342590,5.63542961,142.75,142.62,8.11388759]
[1633076342789,5.63542961,142.75,142.61,26.16007199]
[1633076342993,5.63542961,142.75,142.62,8.11380972]
[1633076343190,5.63542961,142.75,142.64,2.02634236]
[1633076343389,5.63542961,142.75,142.65,25.75975918]
[1633076345193,5.63542961,142.78,142.65,25.75975918]
[1633076347796,5.63542961,142.78,142.65,27.7863047]
[1633076351998,5.63542961,142.78,142.66,2.02464954]
[1633076352201,5.63542961,142.78,142.65,25.75975918]
[1633076352202,5.63542961,142.78,142.65,27.78663416]
[1633076352399,22.84585952,142.8,142.65,27.78663416]
[1633076352601,5.63542961,142.8,142.68,22.29416664]
[1633076352801,78.5956,142.82,142.69,1.99946164]
[1633076353200,84.23102961,142.82,142.68,24.29341544]
[1633076353600,84.23102961,142.82,142.68,22.29416664]
[1633076354301,140.46584259,142.82,142.68,22.29416664]
[1633076354899,140.46584259,142.82,142.68,24.29067985]
[1633076355099,140.46584259,142.82,142.68,22.29416664]
[1633076356300,157.07032806,142.82,142.68,22.29416664]
[1633076357904,17.5229,142.81,142.68,22.29416664]
[1633076358105,17.5229,142.81,142.66,346.82953381]
[1633076358304,35.46629649,142.8,142.66,346.82953381]
[1633076358701,35.46629649,142.79,142.66,346.82953381]
[1633076359102,35.46629649,142.78,142.66,346.82953381]
[1633076359501,35.46629649,142.77,142.66,346.82953381]
[1633076359902,5.63542961,142.76,142.66,346.82953381]
[1633076362103,5.63542961,142.76,142.64,26.49092097]
[1633076362603,5.63542961,142.76,142.63,2.02709765]
[1633076362807,81.46982961,142.76,142.63,2.02709765]
[1633076363006,81.46982961,142.76,142.62,2.02763061]
[1633076363207,5.63542961,142.75,142.62,2.02763061]
[1633076363608,5.63542961,142.75,142.61,2.02779623]
[1633076363810,22.23991508,142.75,142.61,2.02779623]
[1633076364007,22.23991508,142.75,142.6,21.84952618]
[1633076364008,22.23991508,142.75,142.6,23.87725453]
[1633076364209,5.63542961,142.74,142.6,23.87725453]
[1633076364609,5.63542961,142.74,142.6,543.00429445]
[1633076365110,35.46629649,142.74,142.6,543.00429445]
[1633076365508,5.63542961,142.73,142.6,543.00429445]
[1633076366910,5.63542961,142.73,142.6,521.15476827]
[1633076367110,63.45913148,142.73,142.6,519.12703992]
[1633076367311,80.68703513,142.73,142.6,519.12703992]
[1633076367510,23.16982961,142.72,142.6,519.12703992]
[1633076367910,5.63542961,142.71,142.6,546.37850276]
[1633076368513,17.22790365,142.73,142.6,546.37850276]
[1633076368717,22.86333326,142.73,142.6,546.37850276]
[1633076369119,17.22790365,142.73,142.6,546.37850276]
[1633076369317,81.46982961,142.76,142.61,7.66236793]
[1633076369518,75.8344,142.76,142.6,548.40554956]
[1633076369716,17.5332,142.73,142.61,0.02088]
[1633076369926,17.5332,142.73,142.6,519.12703992]
[1633076370118,35.14493127,142.72,142.6,519.12703992]
[1633076370316,64.97579815,142.72,142.6,519.12703992]
[1633076370516,29.50950166,142.71,142.6,519.12703992]
[1633076370718,64.97579815,142.71,142.6,540.81593165]
[1633076370916,35.46629649,142.7,142.6,519.12703992]
[1633076371117,64.97579815,142.7,142.56,78.13805238]
[1633076371323,64.97579815,142.7,142.56,76.1104]
[1633076371324,5.63542961,142.69,142.56,76.1104]
[1633076371516,35.14493127,142.69,142.56,76.1104]
[1633076371919,35.14493127,142.69,142.57,21.55408236]
[1633076372117,5.63542961,142.68,142.57,21.55408236]
[1633076372719,29.50950166,142.69,142.57,21.55408236]
[1633076372918,5.63542961,142.68,142.57,21.55408236]
[1633076374719,5.63542961,142.68,142.56,76.1104]
[1633076376323,5.63542961,142.7,142.56,76.1104]
[1633076376524,5.63542961,142.7,142.56,78.13720678]
[1633076376722,5.63542961,142.7,142.56,78.15808678]
[1633076377922,5.63542961,142.7,142.56,76.1104]
[1633076378325,64.97579815,142.7,142.56,76.1104]
[1633076379726,76.5025,142.69,142.56,76.1104]
[1633076380324,64.97579815,142.7,142.56,76.1104]
[1633076380923,77.9966,142.69,142.56,76.1104]
[1633076381524,83.63202961,142.69,142.56,76.1104]
[1633076382726,29.50950166,142.7,142.56,83.77256954]
[1633076383325,29.50950166,142.7,142.57,2.02703054]
[1633076383725,29.50950166,142.7,142.56,76.1104]
[1633076383726,35.14493127,142.7,142.56,76.1104]
[1633076383923,35.14493127,142.7,142.56,78.13765007]
[1633076384328,35.14493127,142.7,142.56,76.1104]
[1633076384526,35.14493127,142.7,142.56,78.13763653]
[1633076385528,64.97579815,142.7,142.56,78.13763653]
[1633076386929,64.97579815,142.7,142.57,2.02776859]
[1633076388728,64.97579815,142.7,142.58,2.02812576]
[1633076390936,64.97579815,142.7,142.59,2.02810499]
[1633076391132,64.97579815,142.7,142.6,26.61369274]
[1633076392138,35.14493127,142.7,142.6,26.61369274]
[1633076392953,35.14493127,142.7,142.61,2.02834842]
[1633076393155,16.81962255,142.71,142.61,2.02834842]
[1633076393354,78.8347,142.74,142.62,2.0280994]
[1633076393754,78.8347,142.74,142.63,2.02801211]
[1633076394757,5.63542961,142.78,142.63,2.02801211]
[1633076394955,83.91382961,142.78,142.63,2.02801211]
[1633076395156,59.31364632,142.77,142.63,2.02801211]
[1633076395960,29.48277944,142.76,142.63,2.02801211]
[1633076396362,29.48277944,142.76,142.61,78.0989]
[1633076396363,29.83086688,142.77,142.65,25.65140486]
[1633076396562,78.2784,142.78,142.65,27.67863161]
[1633076397761,108.10926688,142.78,142.65,27.67863161]
[1633076397961,137.59204632,142.78,142.65,25.65140486]
[1633076398262,143.22747593,142.78,142.65,25.65140486]
[1633076401267,137.59204632,142.78,142.65,25.65140486]
[1633076401467,20.70366327,142.8,142.65,27.67778816]
[1633076401668,15.06823366,142.8,142.66,2.0471354]
[1633076401867,15.06823366,142.8,142.67,0.02088]
[1633076402472,29.83086688,142.79,142.66,426.4188608]
[1633076402671,29.83086688,142.79,142.68,30.0]
[1633076402869,29.48277944,142.78,142.68,60.0]
[1633076403069,35.11820905,142.78,142.68,60.0]
[1633076403272,29.83086688,142.77,142.68,60.0]
[1633076403872,20.70366327,142.8,142.68,60.0]
[1633076404070,15.06823366,142.8,142.68,60.0]
[1633076404668,15.06823366,142.8,142.68,30.0]
[1633076405268,46.00337832,142.82,142.66,350.1634608]
[1633076405469,29.83086688,142.8,142.66,350.1634608]
[1633076405870,64.94907593,142.8,142.66,350.1634608]
[1633076406273,35.46629649,142.8,142.66,350.1634608]
[1633076406671,29.83086688,142.8,142.66,350.1634608]
[1633076409173,29.83086688,142.8,142.67,76.3066]
[1633076409373,16.17251144,142.82,142.67,76.3066]
[1633076409974,16.17251144,142.82,142.68,5.63542961]
[1633076410179,0.02088,142.84,142.68,5.63542961]
[1633076410374,0.02088,142.84,142.68,7.66055157]
[1633076410578,0.02088,142.84,142.68,5.63542961]
[1633076411376,0.02088,142.84,142.69,30.0]
[1633076411577,0.02088,142.84,142.7,27.75668215]
[1633076412377,132.03211298,142.85,142.7,27.75668215]
[1633076412780,137.66754259,142.85,142.7,27.75668215]
[1633076413780,73.8018,142.85,142.71,5.63542961]
[1633076414380,73.8018,142.85,142.7,27.77756215]
[1633076414578,73.8018,142.85,142.71,5.63542961]
[1633076415579,16.17251144,142.87,142.71,5.63542961]
[1633076415779,5.65630961,142.91,142.71,5.63542961]
[1633076415979,5.65630961,142.91,142.72,26.94641292]
[1633076416380,5.65630961,142.91,142.73,5.63542961]
[1633076416588,5.65630961,142.91,142.74,73.662]
[1633076416781,5.65630961,142.91,142.75,23.27872296]
[1633076416980,5.65630961,142.91,142.75,28.91415257]
[1633076417380,5.65630961,142.91,142.76,407.21854931]
[1633076417780,5.65630961,142.91,142.76,412.85397892]
[1633076419584,5.63542961,142.91,142.77,0.02088]
[1633076419982,5.63542961,142.91,142.77,5.65630961]
[1633076420382,5.63542961,142.94,142.77,5.65630961]
[1633076420983,5.63542961,142.94,142.78,30.0]
[1633076421183,60.63740927,142.94,142.78,30.0]
[1633076421583,5.63542961,142.93,142.78,30.0]
[1633076421785,5.63542961,142.93,142.79,75.5199]
[1633076421982,5.63542961,142.93,142.8,22.09134592]
[1633076423186,32.46043127,142.93,142.8,22.09134592]
[1633076425188,5.63542961,142.92,142.8,22.09134592]
[1633076427790,60.63740927,142.92,142.8,22.09134592]
[1633076428189,5.63542961,142.91,142.8,22.09134592]
[1633076428789,5.65630961,142.94,142.8,22.09134592]
[1633076429188,26.61191789,142.93,142.8,22.09134592]
[1633076429788,5.63542961,142.93,142.8,22.09134592]
[1633076429990,0.02088,142.94,142.8,22.09134592]
[1633076431190,75.2957,142.95,142.8,22.09134592]
[1633076431191,75.2957,142.95,142.8,27.72677553]
[1633076431790,35.65630961,142.99,142.84,439.3680693]
[1633076431992,79.8908,142.98,142.85,25.57191378]
[1633076432591,105.87418585,142.98,142.85,25.57191378]
[1633076433391,79.8908,142.98,142.85,25.57191378]
[1633076433793,0.02088,142.99,142.85,102.21861378]
[1633076433994,0.02088,142.99,142.85,107.85404339]
[1633076434397,700.0,143.0,142.85,107.85404339]
[1633076436992,700.0,143.0,142.92,350.60846537]
[1633076437192,700.0,143.0,142.93,22.20931409]
[1633076442299,700.0,143.0,142.92,350.60846537]
[1633076443098,700.0,143.0,142.86,60.0]
[1633076443398,700.0,143.0,142.87,21.51587833]
[1633076443998,79.9423,142.99,142.87,21.51587833]
[1633076446204,79.9423,142.99,142.87,27.15130794]
[1633076447001,700.0,143.0,142.87,27.15130794]
[1633076447404,700.0,143.0,142.87,57.15130794]
[1633076447804,700.0,143.0,142.88,30.0]
[1633076448200,700.0,143.0,142.89,5.63542961]
[1633076450201,700.0,143.0,142.94,494.59900762]
[1633076450402,700.0,143.0,142.95,24.67111937]
[1633076454103,700.0,143.0,142.95,30.30654898]
[1633076454306,304.79883439,143.0,142.95,5.63542961]
[1633076454604,304.79883439,143.0,142.95,37.02100994]